fUSD/lending_fUSD_20250216
["ID","MTS","AMOUNT","RATE_DAILY","PERIOD"]
[353292018,1739741461981,-500.0,0.00011123,2]
[353292020,1739741461990,-709.91,0.00011123,2]
[353292022,1739741461999,-500.0,0.00011123,2]
[353292024,1739741462010,-285.67887173,0.00011123,2]
[353292026,1739741462019,-500.0,0.00011123,2]
[353292028,1739741462028,-500.0,0.00011123,2]
[353292030,1739741462037,-500.0,0.00011123,2]
[353292032,1739741462047,-500.0,0.00011123,2]
[353292034,1739741462057,-500.0,0.00011123,2]
[353292036,1739741462066,-500.0,0.00011123,2]
[353292038,1739741462075,-500.0,0.00011123,2]
[353292040,1739741462086,-500.0,0.00011123,2]
[353292042,1739741462096,-500.0,0.00011123,2]
[353292044,1739741462106,-837.98,0.00011123,2]
[353292046,1739741462116,-575.12,0.00011123,2]
[353292048,1739741462125,-500.0,0.00011123,2]
[353292050,1739741462135,-241.56930154,0.00011123,2]
[353292052,1739741462144,-500.0,0.00011123,2]
[353292054,1739741462153,-500.0,0.00011123,2]
[353292056,1739741462162,-500.0,0.00011123,2]
[353292058,1739741462172,-500.0,0.00011123,2]
[353292060,1739741462182,-500.0,0.00011123,2]
[353292062,1739741462191,-500.0,0.00011123,2]
[353292063,1739741462200,-500.0,0.00011123,2]
[353292064,1739741462208,-500.0,0.00011123,2]
[353292065,1739741462217,-500.0,0.00011123,2]
[353292066,1739741462227,-500.0,0.00011123,2]
[353292067,1739741462235,-500.0,0.00011123,2]
[353292068,1739741462245,-500.0,0.00011123,2]
[353292069,1739741462254,-591.55,0.00011123,2]
[353292070,1739741462263,-500.0,0.00011123,2]
[353292072,1739741462272,-500.0,0.00011123,2]
[353292074,1739741462282,-500.0,0.00011123,2]
[353292076,1739741462293,-500.0,0.00011123,2]
[353292078,1739741462303,-500.0,0.00011123,2]
[353292080,1739741462313,-500.0,0.00011123,2]
[353292082,1739741462322,-505.48606712,0.00011123,2]
[353292084,1739741462332,-500.0,0.00011123,2]
[353292086,1739741462341,-606.11,0.00011123,2]
[353292088,1739741462349,-500.0,0.00011123,2]
[353292090,1739741462359,-500.0,0.00011123,2]
[353292092,1739741462368,-500.0,0.00011123,2]
[353292094,1739741462378,-918.159809,0.00011123,2]
[353292096,1739741462388,-500.0,0.00011123,2]
[353292097,1739741462397,-638.34,0.00011123,2]
[353292098,1739741462407,-500.0,0.00011123,2]
[353292099,1739741462416,-500.0,0.00011123,2]
[353292100,1739741462425,-500.0,0.00011123,2]
[353292101,1739741462435,-500.0,0.00011123,2]
[353292102,1739741462444,-500.0,0.00011123,2]
[353292103,1739741462454,-500.0,0.00011123,2]
[353292104,1739741462463,-500.0,0.00011123,2]
[353292105,1739741462472,-500.0,0.00011123,2]
[353292106,1739741462482,-500.0,0.00011123,2]
[353292107,1739741462491,-500.0,0.00011123,2]
[353292108,1739741462500,-500.0,0.00011123,2]
[353292109,1739741462510,-500.0,0.00011123,2]
[353292110,1739741462519,-500.0,0.00011123,2]
[353292111,1739741462528,-500.0,0.00011123,2]
[353292112,1739741462538,-500.0,0.00011123,2]
[353292113,1739741462548,-500.0,0.00011123,2]
[353292114,1739741462558,-500.0,0.00011123,2]
[353292115,1739741462568,-557.96441779,0.00011123,2]
[353292116,1739741462577,-500.0,0.00011123,2]
[353292117,1739741462587,-944.99,0.00011123,2]
[353292118,1739741462596,-500.0,0.00011123,2]
[353292119,1739741462605,-500.0,0.00011123,2]
[353292121,1739741462614,-545.12509961,0.00011123,2]
[353292123,1739741462623,-500.0,0.00011123,2]
[353292125,1739741462632,-500.0,0.00011123,2]
[353292127,1739741462642,-500.0,0.00011123,2]
[353292129,1739741462651,-500.0,0.00011123,2]
[353292130,1739741462661,-500.0,0.00011123,2]
[353292132,1739741462674,-500.0,0.00011123,2]
[353292134,1739741462683,-500.0,0.00011123,2]
[353292136,1739741462692,-500.0,0.00011123,2]
[353292137,1739741462702,-500.0,0.00011123,2]
[353292138,1739741462712,-506.16,0.00011123,2]
[353292140,1739741462721,-500.0,0.00011123,2]
[353292142,1739741462730,-500.0,0.00011123,2]
[353292143,1739741462739,-500.0,0.00011123,2]
[353292145,1739741462751,-500.0,0.00011123,2]
[353292146,1739741462760,-500.0,0.00011123,2]
[353292147,1739741462769,-500.0,0.00011123,2]
[353292149,1739741462778,-500.0,0.00011123,2]
[353292151,1739741462787,-500.0,0.00011123,2]
[353292152,1739741462797,-500.0,0.00011123,2]
[353292154,1739741462808,-553.97865,0.00011123,2]
[353292155,1739741462817,-500.0,0.00011123,2]
[353292157,1739741462827,-500.0,0.00011123,2]
[353292158,1739741462836,-500.0,0.00011123,2]
[353292160,1739741462846,-500.0,0.00011123,2]
[353292161,1739741462855,-500.0,0.00011123,2]
[353292162,1739741462866,-500.0,0.00011123,2]
[353292163,1739741462875,-500.0,0.00011123,2]
[353292165,1739741462885,-500.0,0.00011123,2]
[353292167,1739741462894,-500.0,0.00011123,2]
[353292168,1739741462903,-500.0,0.00011123,2]
[353292169,1739741462912,-501.12085478,0.00011123,2]
[353292171,1739741462922,-647.51,0.00011123,2]
[353292173,1739741462931,-1027.09,0.00011123,2]
[353292174,1739741462940,-500.0,0.00011123,2]
[353292176,1739741462948,-607.15256292,0.00011123,2]
[353292177,1739741462958,-500.0,0.00011123,2]
[353292179,1739741462967,-500.0,0.00011123,2]
[353292181,1739741462976,-500.0,0.00011123,2]
[353292182,1739741462986,-500.0,0.00011123,2]
[353292184,1739741462995,-500.0,0.00011123,2]
[353292186,1739741463004,-500.0,0.00011123,2]
[353292187,1739741463014,-543.6,0.00011123,2]
[353292189,1739741463024,-284.4987198,0.00011123,2]
[353292191,1739741463034,-788.06,0.00011123,2]
[353292192,1739741463043,-500.0,0.00011123,2]
[353292194,1739741463054,-500.0,0.00011123,2]
[353292195,1739741463064,-500.0,0.00011123,2]
[353292197,1739741463075,-500.0,0.00011123,2]
[353292199,1739741463086,-500.0,0.00011123,2]
[353292200,1739741463096,-500.0,0.00011123,2]
[353292202,1739741463106,-500.0,0.00011123,2]
[353292204,1739741463115,-500.0,0.00011123,2]
[353292205,1739741463125,-642.16,0.00011123,2]
[353292207,1739741463135,-500.0,0.00011123,2]
[353292209,1739741463145,-798.35,0.00011123,2]
[353292211,1739741463155,-704.85,0.00011123,2]
[353292213,1739741463165,-500.0,0.00011123,2]
[353292215,1739741463175,-500.0,0.00011123,2]
[353292217,1739741463185,-500.0,0.00011123,2]
[353292219,1739741463196,-500.0,0.00011123,2]
[353292221,1739741463207,-500.0,0.00011123,2]
[353292223,1739741463217,-500.0,0.00011123,2]
[353292225,1739741463227,-500.0,0.00011123,2]
[353292227,1739741463237,-838.3,0.00011123,2]
[353292229,1739741463247,-500.0,0.00011123,2]
[353292231,1739741463257,-525.66,0.00011123,2]
[353292233,1739741463267,-500.0,0.00011123,2]
[353292235,1739741463277,-500.0,0.00011123,2]
[353292237,1739741463287,-500.0,0.00011123,2]
[353292239,1739741463298,-594.36,0.00011123,2]
[353292241,1739741463308,-715.74,0.00011123,2]
[353292243,1739741463318,-500.0,0.00011123,2]
[353292245,1739741463328,-500.0,0.00011123,2]
[353292247,1739741463337,-585.2,0.00011123,2]
[353292249,1739741463347,-500.0,0.00011123,2]
[353292251,1739741463357,-500.0,0.00011123,2]
[353292253,1739741463368,-500.0,0.00011123,2]
[353292254,1739741463377,-500.0,0.00011123,2]
[353292255,1739741463387,-569.13,0.00011123,2]
[353292256,1739741463396,-500.0,0.00011123,2]
[353292257,1739741463407,-510.83201237,0.00011123,2]
[353292258,1739741463416,-1056.3,0.00011123,2]
[353292259,1739741463425,-500.0,0.00011123,2]
[353292260,1739741463435,-500.0,0.00011123,2]
[353292261,1739741463444,-732.78,0.00011123,2]
[353292262,1739741463454,-500.0,0.00011123,2]
[353292263,1739741463464,-500.0,0.00011123,2]
[353292264,1739741463473,-500.0,0.00011123,2]
[353292265,1739741463483,-935.63,0.00011123,2]
[353292266,1739741463493,-871.07,0.00011123,2]
[353292267,1739741463502,-500.0,0.00011123,2]
[353292268,1739741463511,-500.0,0.00011123,2]
[353292269,1739741463521,-575.48,0.00011123,2]
[353292270,1739741463530,-500.0,0.00011123,2]
[353292271,1739741463540,-500.0,0.00011123,2]
[353292272,1739741463551,-500.0,0.00011123,2]
[353292273,1739741463561,-500.0,0.00011123,2]
[353292274,1739741463571,-500.0,0.00011123,2]
[353292275,1739741463581,-500.0,0.00011123,2]
[353292276,1739741463590,-986.28,0.00011123,2]
[353292278,1739741463599,-500.0,0.00011123,2]
[353292279,1739741463609,-500.0,0.00011123,2]
[353292280,1739741463618,-1680.01,0.00011123,2]
[353292282,1739741463628,-500.0,0.00011123,2]
[353292284,1739741463637,-1077.07,0.00011123,2]
[353292286,1739741463647,-619.29,0.00011123,2]
[353292288,1739741463656,-500.0,0.00011123,2]
[353292290,1739741463669,-500.0,0.00011123,2]
[353292292,1739741463679,-607.08,0.00011123,2]
[353292294,1739741463688,-500.0,0.00011123,2]
[353292296,1739741463698,-500.0,0.00011123,2]
[353292297,1739741463711,-500.0,0.00011123,2]
[353292298,1739741463721,-500.0,0.00011123,2]
[353292299,1739741463731,-500.0,0.00011123,2]
[353292300,1739741463742,-500.0,0.00011123,2]
[353292301,1739741463753,-500.0,0.00011123,2]
[353292302,1739741463763,-1165.44,0.00011123,2]
[353292303,1739741463773,-500.0,0.00011123,2]
[353292306,1739741463783,-500.0,0.00011123,2]
[353292308,1739741463792,-664.97,0.00011123,2]
[353292310,1739741463803,-500.0,0.00011123,2]
[353292311,1739741463812,-719.83,0.00011123,2]
[353292314,1739741463822,-500.0,0.00011123,2]
[353292315,1739741463832,-1746.35,0.00011123,2]
[353292317,1739741463842,-500.0,0.00011123,2]
[353292319,1739741463852,-568.14,0.00011123,2]
[353292322,1739741463862,-523.97,0.00011123,2]
[353292341,1739741464038,-500.0,0.00011123,2]
[353292343,1739741464057,-500.0,0.00011123,2]
[353292345,1739741464067,-278.44133206,0.00011123,2]
[353292347,1739741464077,-500.0,0.00011123,2]
[353292350,1739741464088,-780.84,0.00011123,2]
[353292352,1739741464097,-3852.97,0.00011123,2]
[353292354,1739741464107,-500.0,0.00011123,2]
[353292356,1739741464117,-500.0,0.00011123,2]
[353292358,1739741464127,-500.0,0.00011123,2]
[353292360,1739741464136,-500.0,0.00011123,2]
[353292362,1739741464146,-500.0,0.00011123,2]
[353292364,1739741464155,-1218.9,0.00011123,2]
[353292366,1739741464166,-628.56101036,0.00011123,2]
[353292368,1739741464176,-735.52,0.00011123,2]
[353292370,1739741464186,-500.0,0.00011123,2]
[353292372,1739741464196,-1181.32,0.00011123,2]
[353292374,1739741464205,-500.0,0.00011123,2]
[353292376,1739741464218,-844.56,0.00011123,2]
[353292378,1739741464231,-630.49,0.00011123,2]
[353292380,1739741464240,-516.89001051,0.00011123,2]
[353292382,1739741464251,-500.0,0.00011123,2]
[353292384,1739741464261,-500.0,0.00011123,2]
[353292386,1739741464271,-500.0,0.00011123,2]
[353292388,1739741464282,-500.0,0.00011123,2]
[353292390,1739741464292,-1213.33,0.00011123,2]
[353292392,1739741464302,-500.0,0.00011123,2]
[353292393,1739741464312,-500.0,0.00011123,2]
[353292396,1739741464321,-884.51,0.00011123,2]
[353292398,1739741464331,-1018.2,0.00011123,2]
[353292400,1739741464341,-563.75,0.00011123,2]
[353292402,1739741464351,-500.0,0.00011123,2]
[353292404,1739741464361,-500.0,0.00011123,2]
[353292406,1739741464370,-500.0,0.00011123,2]
[353292408,1739741464380,-2161.82,0.00011123,2]
[353292410,1739741464390,-1279.59,0.00011123,2]
[353292412,1739741464400,-500.0,0.00011123,2]
[353292414,1739741464410,-500.0,0.00011123,2]
[353292416,1739741464419,-570.27,0.00011123,2]
[353292418,1739741464429,-500.0,0.00011123,2]
[353292420,1739741464439,-1237.78,0.00011123,2]
[353292422,1739741464448,-571.61,0.00011123,2]
[353292424,1739741464458,-578.07,0.00011123,2]
[353292426,1739741464468,-746.6,0.00011123,2]
[353292428,1739741464477,-928.78,0.00011123,2]
[353292429,1739741464488,-500.0,0.00011123,2]
[353292430,1739741464498,-1224.95,0.00011123,2]
[353292431,1739741464509,-500.0,0.00011123,2]
[353292432,1739741464519,-500.0,0.00011123,2]
[353292433,1739741464529,-500.0,0.00011123,2]
[353292434,1739741464539,-500.0,0.00011123,2]
[353292435,1739741464550,-500.0,0.00011123,2]
[353292436,1739741464560,-2671.11,0.00011123,2]
[353292437,1739741464570,-500.0,0.00011123,2]
[353292438,1739741464580,-1795.74,0.00011123,2]
[353292439,1739741464590,-500.0,0.00011123,2]
[353292440,1739741464601,-500.0,0.00011123,2]
[353292441,1739741464611,-692.31,0.00011123,2]
[353292442,1739741464621,-1325.8,0.00011123,2]
[353292443,1739741464631,-510.35,0.00011123,2]
[353292444,1739741464641,-500.0,0.00011123,2]
[353292445,1739741464651,-500.0,0.00011123,2]
[353292446,1739741464661,-500.0,0.00011123,2]
[353292447,1739741464675,-704.5,0.00011123,2]
[353292448,1739741464691,-1496.14,0.00011123,2]
[353292449,1739741464701,-1692.5,0.00011123,2]
[353292450,1739741464711,-500.0,0.00011123,2]
[353292451,1739741464722,-500.0,0.00011123,2]
[353292452,1739741464733,-500.0,0.00011123,2]
[353292453,1739741464743,-500.0,0.00011123,2]
[353292454,1739741464752,-718.51,0.00011123,2]
[353292455,1739741464762,-500.0,0.00011123,2]
[353292456,1739741464772,-1162.05,0.00011123,2]
[353292457,1739741464782,-500.0,0.00011123,2]
[353292458,1739741464792,-500.0,0.00011123,2]
[353292459,1739741464802,-1103.47,0.00011123,2]
[353292460,1739741464812,-500.0,0.00011123,2]
[353292461,1739741464822,-2358.86,0.00011123,2]
[353292462,1739741464832,-1003.73,0.00011123,2]
[353292463,1739741464843,-500.0,0.00011123,2]
[353292464,1739741464852,-401.24133202,0.00011123,2]
[353292465,1739741464862,-659.76,0.00011123,2]
[353292466,1739741464873,-500.0,0.00011123,2]
[353292467,1739741464882,-1002.24,0.00011123,2]
[353292468,1739741464892,-500.0,0.00011123,2]
[353292469,1739741464902,-500.0,0.00011123,2]
[353292470,1739741464913,-1088.77,0.00011123,2]
[353292471,1739741464923,-872.82,0.00011123,2]
[353292472,1739741464932,-181.51659982,0.00011123,2]
[353292473,1739741464942,-988.81,0.00011123,2]
[353292474,1739741464952,-536.83,0.00011123,2]
[353292475,1739741464961,-704.63,0.00011123,2]
[353292476,1739741464971,-1399.83,0.00011123,2]
[353292477,1739741464982,-889.49,0.00011123,2]
[353292478,1739741464992,-1082.81,0.00011123,2]
[353292479,1739741465001,-1230.14,0.00011123,2]
[353292480,1739741465011,-1067.19,0.00011123,2]
[353292481,1739741465021,-802.79,0.00011123,2]
[353292482,1739741465032,-500.0,0.00011123,2]
[353292483,1739741465042,-650.49,0.00011123,2]
[353292484,1739741465053,-500.0,0.00011123,2]
[353292485,1739741465063,-610.44,0.00011123,2]
[353292486,1739741465073,-485.73539109,0.00011123,2]
[353292487,1739741465083,-500.0,0.00011123,2]
[353292488,1739741465093,-1953.73,0.00011123,2]
[353292489,1739741465102,-1787.1,0.00011123,2]
[353292490,1739741465112,-500.0,0.00011123,2]
[353292491,1739741465123,-1000.0,0.00011123,2]
[353292492,1739741465133,-1567.15,0.00011123,2]
[353292493,1739741465143,-500.0,0.00011123,2]
[353292494,1739741465153,-500.0,0.00011123,2]
[353292495,1739741465162,-500.0,0.00011123,2]
[353292496,1739741465171,-769.34,0.00011123,2]
[353292497,1739741465180,-594.83,0.00011123,2]
[353292498,1739741465190,-1266.93,0.00011123,2]
[353292499,1739741465200,-1537.32,0.00011123,2]
[353292500,1739741465210,-500.0,0.00011123,2]
[353292501,1739741465220,-1617.88,0.00011123,2]
[353292502,1739741465230,-500.0,0.00011123,2]
[353292503,1739741465240,-500.0,0.00011123,2]
[353292504,1739741465251,-880.55,0.00011123,2]
[353292505,1739741465261,-2377.59,0.00011123,2]
[353292506,1739741465271,-500.0,0.00011123,2]
[353292507,1739741465282,-500.0,0.00011123,2]
[353292508,1739741465292,-500.0,0.00011123,2]
[353292509,1739741465303,-831.51,0.00011123,2]
[353292510,1739741465314,-925.36,0.00011123,2]
[353292511,1739741465324,-500.0,0.00011123,2]
[353292512,1739741465333,-1982.51,0.00011123,2]
[353292513,1739741465343,-554.5,0.00011123,2]
[353292514,1739741465353,-500.0,0.00011123,2]
[353292515,1739741465363,-523.53,0.00011123,2]
[353292516,1739741465372,-1136.92,0.00011123,2]
[353292517,1739741465382,-1114.53,0.00011123,2]
[353292518,1739741465391,-1052.49,0.00011123,2]
[353292519,1739741465401,-500.0,0.00011123,2]
[353292520,1739741465410,-1388.63,0.00011123,2]
[353292521,1739741465420,-500.0,0.00011123,2]
[353292522,1739741465430,-500.0,0.00011123,2]
[353292523,1739741465440,-500.0,0.00011123,2]
[353292524,1739741465450,-500.0,0.00011123,2]
[353292525,1739741465459,-906.08,0.00011123,2]
[353292526,1739741465471,-500.0,0.00011123,2]
[353292527,1739741465481,-500.0,0.00011123,2]
[353292528,1739741465490,-727.7,0.00011123,2]
[353292529,1739741465500,-500.0,0.00011123,2]
[353292530,1739741465509,-225.41957089,0.00011123,2]
[353292531,1739741465519,-500.0,0.00011123,2]
[353292532,1739741465529,-500.0,0.00011123,2]
[353292533,1739741465539,-533.69,0.00011123,2]
[353292534,1739741465550,-1053.25,0.00011123,2]
[353292535,1739741465560,-500.0,0.00011123,2]
[353292536,1739741465569,-2195.07,0.00011123,2]
[353292537,1739741465580,-500.0,0.00011123,2]
[353292538,1739741465589,-500.0,0.00011123,2]
[353292539,1739741465599,-500.0,0.00011123,2]
[353292540,1739741465609,-500.0,0.00011123,2]
[353292541,1739741465619,-500.0,0.00011123,2]
[353292542,1739741465630,-1788.26,0.00011123,2]
[353292543,1739741465639,-1171.15,0.00011123,2]
[353292544,1739741465651,-559.49,0.00011123,2]
[353292545,1739741465662,-1440.31,0.00011123,2]
[353292546,1739741465679,-500.0,0.00011123,2]
[353292547,1739741465689,-500.0,0.00011123,2]
[353292548,1739741465700,-678.97,0.00011123,2]
[353292549,1739741465710,-500.0,0.00011123,2]
[353292550,1739741465720,-1354.3,0.00011123,2]
[353292551,1739741465729,-500.0,0.00011123,2]
[353292552,1739741465739,-889.19,0.00011123,2]
[353292553,1739741465752,-500.0,0.00011123,2]
[353292554,1739741465764,-500.0,0.00011123,2]
[353292555,1739741465774,-844.27,0.00011123,2]
[353292556,1739741465784,-904.49,0.00011123,2]
[353292557,1739741465793,-948.75,0.00011123,2]
[353292558,1739741465804,-500.0,0.00011123,2]
[353292559,1739741465813,-917.74,0.00011123,2]
[353292560,1739741465823,-500.0,0.00011123,2]
[353292561,1739741465833,-1044.1,0.00011123,2]
[353292562,1739741465843,-500.0,0.00011123,2]
[353292563,1739741465853,-529.4,0.00011123,2]
[353292564,1739741465863,-1333.19,0.00011123,2]
[353292565,1739741465873,-1668.91,0.00011123,2]
[353292566,1739741465883,-500.0,0.00011123,2]
[353292567,1739741465892,-500.0,0.00011123,2]
[353292568,1739741465903,-502.8988218,0.00011123,2]
[353292569,1739741465913,-945.11,0.00011123,2]
[353292570,1739741465923,-525.68,0.00011123,2]
[353292571,1739741465933,-512.86,0.00011123,2]
[353292572,1739741465943,-169.03234295,0.00011123,2]
[353292573,1739741465953,-500.0,0.00011123,2]
[353292574,1739741465963,-500.98481675,0.00011123,2]
[353292575,1739741465973,-645.59,0.00011123,2]
[353292576,1739741465983,-500.0,0.00011123,2]
[353292577,1739741465992,-500.0,0.00011123,2]
[353292578,1739741466002,-500.0,0.00011123,2]
[353292579,1739741466012,-500.0,0.00011123,2]
[353292580,1739741466021,-745.01,0.00011123,2]
[353292581,1739741466031,-500.0,0.00011123,2]
[353292582,1739741466042,-500.0,0.00011123,2]
[353292583,1739741466052,-500.0,0.00011123,2]
[353292584,1739741466062,-500.0,0.00011123,2]
[353292585,1739741466071,-500.0,0.00011123,2]
[353292586,1739741466081,-500.0,0.00011123,2]
[353292587,1739741466092,-500.0,0.00011123,2]
[353292588,1739741466102,-500.0,0.00011123,2]
[353292589,1739741466112,-1330.22,0.00011123,2]
[353292590,1739741466122,-513.84124394,0.00011123,2]
[353292591,1739741466132,-1328.07,0.00011123,2]
[353292592,1739741466142,-500.0,0.00011123,2]
[353292593,1739741466153,-500.0,0.00011123,2]
[353292594,1739741466162,-500.0,0.00011123,2]
[353292595,1739741466172,-500.0,0.00011123,2]
[353292596,1739741466182,-711.57,0.00011123,2]
[353292597,1739741466191,-1015.67,0.00011123,2]
[353292598,1739741466202,-500.0,0.00011123,2]
[353292599,1739741466211,-500.0,0.00011123,2]
[353292600,1739741466221,-500.0,0.00011123,2]
[353292601,1739741466230,-571.95,0.00011123,2]
[353292602,1739741466239,-585.07641339,0.00011123,2]
[353292603,1739741466249,-500.0,0.00011123,2]
[353292604,1739741466258,-500.0,0.00011123,2]
[353292605,1739741466268,-811.31,0.00011123,2]
[353292606,1739741466277,-500.0,0.00011123,2]
[353292607,1739741466287,-226.39785308,0.00011138,2]
[353292608,1739741466297,-594.13825676,0.0001115,2]
[353292609,1739741466306,-880.2,0.00011178,2]
[353292610,1739741466316,-4635.0,0.00011178,2]
[353292611,1739741466326,-2152.81242564,0.00011187,2]
[353292612,1739741466336,-907.51339715,0.00011194,2]
[353292613,1739741466346,-300.0,0.00011202,2]
[353292614,1739741466356,-666.0,0.00011202,2]
[353292615,1739741466365,-300.0,0.00011202,2]
[353292616,1739741466375,-816.01800951,0.00011203,3]
[353292617,1739741466385,-300.0,0.00011203,2]
[353292618,1739741466395,-300.0,0.00011203,2]
[353292619,1739741466406,-666.0,0.00011203,2]
[353292620,1739741466416,-1642.48,0.00011203,2]
[353292621,1739741466426,-500.0,0.00011203,2]
[353292622,1739741466435,-238.179977,0.00011203,2]
[353292623,1739741466446,-4079.74,0.00011203,2]
[353292624,1739741466456,-4079.74,0.00011203,2]
[353292625,1739741466466,-4079.74,0.00011203,2]
[353292626,1739741466476,-4079.74,0.00011203,2]
[353292627,1739741466486,-4079.74,0.00011203,2]
[353292628,1739741466496,-4079.74,0.00011203,2]
[353292629,1739741466506,-4079.74,0.00011203,2]
[353292630,1739741466516,-4079.74,0.00011203,2]
[353292631,1739741466526,-4079.74,0.00011203,2]
[353292632,1739741466591,-4079.74,0.00011203,2]
[353292633,1739741466601,-4079.74,0.00011203,2]
[353292634,1739741466610,-4079.74,0.00011203,2]
[353292635,1739741466620,-4079.74,0.00011203,2]
[353292636,1739741466630,-4079.74,0.00011203,2]
[353292637,1739741466639,-4079.74,0.00011203,2]
[353292638,1739741466648,-538.68,0.00011203,2]
[353292639,1739741466657,-538.68,0.00011203,2]
[353292640,1739741466669,-538.68,0.00011203,2]
[353292641,1739741466680,-538.68,0.00011203,2]
[353292642,1739741466690,-538.68,0.00011203,2]
[353292643,1739741466699,-538.68,0.00011203,2]
[353292644,1739741466710,-538.68,0.00011203,2]
[353292645,1739741466720,-538.68,0.00011203,2]
[353292646,1739741466729,-538.68,0.00011203,2]
[353292647,1739741466738,-538.68,0.00011203,2]
[353292648,1739741466749,-538.68,0.00011203,2]
[353292649,1739741466758,-538.68,0.00011203,2]
[353292650,1739741466767,-538.68,0.00011203,2]
[353292651,1739741466776,-538.68,0.00011203,2]
[353292652,1739741466786,-538.68,0.00011203,2]
[353292653,1739741466795,-300.0,0.00011203,2]
[353292654,1739741466805,-500.0,0.00011204,2]
[353292655,1739741466815,-617.05,0.00011204,2]
[353292656,1739741466825,-500.0,0.00011204,2]
[353292657,1739741466835,-500.0,0.00011204,2]
[353292658,1739741466844,-500.0,0.00011204,2]
[353292659,1739741466854,-500.0,0.00011204,2]
[353292660,1739741466863,-500.0,0.00011204,2]
[353292661,1739741466872,-500.0,0.00011204,2]
[353292662,1739741466881,-500.0,0.00011204,2]
[353292663,1739741466890,-500.0,0.00011204,2]
[353292664,1739741466899,-310.7678761,0.00011204,2]
[353292665,1739741466909,-4079.74,0.00011204,2]
[353292666,1739741466919,-4079.74,0.00011204,2]
[353292667,1739741466928,-4079.74,0.00011204,2]
[353292668,1739741466938,-4079.74,0.00011204,2]
[353292669,1739741466947,-4079.74,0.00011204,2]
[353292670,1739741466956,-4079.93876093,0.00011204,2]
[353292671,1739741466966,-561.91,0.00011204,2]
[353292672,1739741466977,-561.91,0.00011204,2]
[353292673,1739741466990,-561.91,0.00011204,2]
[353292674,1739741466999,-561.91,0.00011204,2]
[353292675,1739741467008,-561.91,0.00011204,2]
[353292676,1739741467018,-561.91,0.00011204,2]
[353292677,1739741467027,-561.91,0.00011204,2]
[353292678,1739741467037,-561.91,0.00011204,2]
[353292679,1739741467046,-561.91,0.00011204,2]
[353292680,1739741467056,-561.91,0.00011204,2]
[353292681,1739741467067,-561.91,0.00011204,2]
[353292682,1739741467076,-561.91,0.00011204,2]
[353292683,1739741467086,-561.91,0.00011204,2]
[353292684,1739741467096,-561.91,0.00011204,2]
[353292685,1739741467106,-561.91,0.00011204,2]
[353292686,1739741467115,-561.91,0.00011204,2]
[353292687,1739741467124,-538.68,0.00011204,2]
[353292688,1739741467133,-538.68,0.00011204,2]
[353292689,1739741467143,-538.68,0.00011204,2]